[Event "*** SCC Grand Prix: Titled Tuesday Blitz"]
[Site "Chess.com"]
[Date "2020.09.29"]
[Round "6"]
[White "LubovMarkelova"]
[Black "gagtemp"]
[Result "1-0"]
[WhiteElo "2224"]
[BlackElo "1963"]
[TimeControl "180+1"]
[EndTime "11:05:18 PDT"]
[Termination "LubovMarkelova won by checkmate"]

1. Nf3 {[%clk 0:02:55.9]} 1... d5 {[%clk 0:02:58.9]} 2. d4 {[%clk 0:02:45]} 2...
e6 {[%clk 0:02:58.8]} 3. c4 {[%clk 0:02:44]} 3... c5 {[%clk 0:02:59.1]} 4. e3
{[%clk 0:02:42.3]} 4... Nc6 {[%clk 0:02:58.5]} 5. Nc3 {[%clk 0:02:41.9]} 5...
Nf6 {[%clk 0:02:58.3]} 6. cxd5 {[%clk 0:02:33]} 6... exd5 {[%clk 0:02:57.1]} 7.
Bb5 {[%clk 0:02:32.7]} 7... cxd4 {[%clk 0:02:43.2]} 8. Nxd4 {[%clk 0:01:58.3]}
8... Be7 {[%clk 0:02:39.5]} 9. Nxc6 {[%clk 0:01:57.1]} 9... bxc6 {[%clk
0:02:38.3]} 10. Bxc6+ {[%clk 0:01:57.6]} 10... Bd7 {[%clk 0:02:38.3]} 11. Bxa8
{[%clk 0:01:57.9]} 11... Qxa8 {[%clk 0:02:38.7]} 12. O-O {[%clk 0:01:57.3]}
12... Bc6 {[%clk 0:02:32.2]} 13. b3 {[%clk 0:01:56.6]} 13... O-O {[%clk
0:02:29.5]} 14. Ne2 {[%clk 0:01:53.8]} 14... Rd8 {[%clk 0:02:21]} 15. Bb2 {[%clk
0:01:47.9]} 15... d4 {[%clk 0:02:16.2]} 16. Bxd4 {[%clk 0:01:44.5]} 16... Bxg2
{[%clk 0:02:15.4]} 17. Re1 {[%clk 0:01:41.8]} 17... Bf3 {[%clk 0:01:59]} 18. Qc2
{[%clk 0:01:12.9]} 18... Be4 {[%clk 0:01:48]} 19. Qc7 {[%clk 0:00:46.6]} 19...
Bd6 {[%clk 0:01:31.2]} 20. Qxa7 {[%clk 0:00:45.1]} 20... Qd5 {[%clk 0:01:30.3]}
21. Ng3 {[%clk 0:00:40.6]} 21... Bxg3 {[%clk 0:01:05.5]} 22. fxg3 {[%clk
0:00:39.5]} 22... Bh1 {[%clk 0:00:54.8]} 23. Re2 {[%clk 0:00:39.3]} 23... Bf3
{[%clk 0:00:51.3]} 24. Rf2 {[%clk 0:00:37.6]} 24... Bh1 {[%clk 0:00:45.9]} 25.
Qc5 {[%clk 0:00:35.9]} 25... Qa8 {[%clk 0:00:44]} 26. Bxf6 {[%clk 0:00:35.4]}
26... gxf6 {[%clk 0:00:42.5]} 27. Qf5 {[%clk 0:00:29.3]} 27... Rd6 {[%clk
0:00:39.9]} 28. Raf1 {[%clk 0:00:26.7]} 28... Kh8 {[%clk 0:00:25.7]} 29. h4
{[%clk 0:00:21.1]} 29... Kg8 {[%clk 0:00:25.3]} 30. Kh2 {[%clk 0:00:20.9]} 30...
Be4 {[%clk 0:00:20.5]} 31. Qg4+ {[%clk 0:00:20.6]} 31... Kf8 {[%clk 0:00:20.4]}
32. Rxf6 {[%clk 0:00:17.8]} 32... Bh1 {[%clk 0:00:18.6]} 33. Rxf7+ {[%clk
0:00:17]} 33... Ke8 {[%clk 0:00:18.1]} 34. Qg8# {[%clk 0:00:17.2]} 1-0

[Event "*** SCC Grand Prix: Titled Tuesday Blitz"]
[Site "Chess.com"]
[Date "2020.09.29"]
[Round "6"]
[White "penguingm1"]
[Black "Legendinunknown"]
[Result "1-0"]
[WhiteElo "2890"]
[BlackElo "2648"]
[TimeControl "180+1"]
[EndTime "11:05:23 PDT"]
[Termination "penguingm1 won by resignation"]

1. d4 {[%clk 0:03:00.9]} 1... Nf6 {[%clk 0:02:57.8]} 2. c4 {[%clk 0:03:00]} 2...
g6 {[%clk 0:02:55.5]} 3. f3 {[%clk 0:02:59.3]} 3... Bg7 {[%clk 0:02:51.4]} 4. e4
{[%clk 0:02:58.8]} 4... d6 {[%clk 0:02:50.2]} 5. Nc3 {[%clk 0:02:58.6]} 5... O-O
{[%clk 0:02:50]} 6. Nge2 {[%clk 0:02:58.3]} 6... e5 {[%clk 0:02:48]} 7. dxe5
{[%clk 0:02:58.4]} 7... dxe5 {[%clk 0:02:46.7]} 8. Qxd8 {[%clk 0:02:59]} 8...
Rxd8 {[%clk 0:02:46.3]} 9. Nd5 {[%clk 0:02:59.8]} 9... Nxd5 {[%clk 0:02:45.5]}
10. cxd5 {[%clk 0:03:00.7]} 10... c6 {[%clk 0:02:37.8]} 11. Nc3 {[%clk
0:02:59.6]} 11... Nd7 {[%clk 0:02:27.4]} 12. Bg5 {[%clk 0:02:40.8]} 12... f6
{[%clk 0:01:52]} 13. Be3 {[%clk 0:02:38.5]} 13... Nb6 {[%clk 0:01:51.5]} 14. a3
{[%clk 0:01:38.2]} 14... Bd7 {[%clk 0:01:00.6]} 15. h4 {[%clk 0:01:30.1]} 15...
Bf8 {[%clk 0:00:37.4]} 16. h5 {[%clk 0:01:28.6]} 16... Rac8 {[%clk 0:00:37.2]}
17. hxg6 {[%clk 0:01:27.2]} 17... hxg6 {[%clk 0:00:38.1]} 18. Rd1 {[%clk
0:01:24.3]} 18... Kf7 {[%clk 0:00:37.6]} 19. Be2 {[%clk 0:00:19.4]} 19... cxd5
{[%clk 0:00:26.2]} 20. Nxd5 {[%clk 0:00:19.5]} 20... Nxd5 {[%clk 0:00:25.8]} 21.
Rxd5 {[%clk 0:00:20.4]} 21... b6 {[%clk 0:00:16.2]} 22. Rh7+ {[%clk 0:00:19.9]}
22... Ke8 {[%clk 0:00:15.6]} 23. Ba6 {[%clk 0:00:04.8]} 23... Rc7 {[%clk
0:00:13.4]} 24. Bb5 {[%clk 0:00:04.1]} 24... Rb7 {[%clk 0:00:10.3]} 25. g4
{[%clk 0:00:01.7]} 25... Rc7 {[%clk 0:00:09.6]} 26. g5 {[%clk 0:00:02.1]} 26...
f5 {[%clk 0:00:09.4]} 27. Rxe5+ {[%clk 0:00:02.5]} 1-0

[Event "*** SCC Grand Prix: Titled Tuesday Blitz"]
[Site "Chess.com"]
[Date "2020.09.29"]
[Round "6"]
[White "night_player"]
[Black "VladaSviridova"]
[Result "1-0"]
[WhiteElo "2097"]
[BlackElo "2246"]
[TimeControl "180+1"]
[EndTime "11:05:23 PDT"]
[Termination "night_player won by resignation"]

1. e4 {[%clk 0:03:00.9]} 1... e6 {[%clk 0:02:59.9]} 2. d4 {[%clk 0:02:59.3]}
2... d5 {[%clk 0:03:00.5]} 3. Nd2 {[%clk 0:02:56.8]} 3... c5 {[%clk 0:02:59.8]}
4. c3 {[%clk 0:02:56.4]} 4... cxd4 {[%clk 0:02:58.6]} 5. cxd4 {[%clk 0:02:56.4]}
5... dxe4 {[%clk 0:02:58.7]} 6. Nxe4 {[%clk 0:02:56.4]} 6... Nf6 {[%clk
0:02:55.1]} 7. Nxf6+ {[%clk 0:02:56]} 7... Qxf6 {[%clk 0:02:54.1]} 8. Nf3 {[%clk
0:02:56.9]} 8... Nc6 {[%clk 0:02:47.8]} 9. Bb5 {[%clk 0:02:53.5]} 9... Bd7
{[%clk 0:02:45.3]} 10. O-O {[%clk 0:02:52.3]} 10... Bd6 {[%clk 0:02:42.2]} 11.
d5 {[%clk 0:02:47.6]} 11... exd5 {[%clk 0:02:35.7]} 12. Qxd5 {[%clk 0:02:48]}
12... O-O {[%clk 0:02:25.3]} 13. Rd1 {[%clk 0:02:41.4]} 13... Nb4 {[%clk
0:02:17.1]} 14. Qxd6 {[%clk 0:02:27.5]} 14... Qxd6 {[%clk 0:02:16.1]} 15. Rxd6
{[%clk 0:02:28.4]} 15... Bxb5 {[%clk 0:02:16.2]} 16. Bf4 {[%clk 0:02:21.3]}
16... h6 {[%clk 0:02:04.7]} 17. a3 {[%clk 0:02:17.3]} 17... Nc6 {[%clk
0:01:58.6]} 18. b4 {[%clk 0:01:51.2]} 18... Rfd8 {[%clk 0:01:52.5]} 19. Rad1
{[%clk 0:01:48.2]} 19... Rxd6 {[%clk 0:01:50.3]} 20. Rxd6 {[%clk 0:01:46.8]}
20... Rd8 {[%clk 0:01:43.8]} 21. Rxd8+ {[%clk 0:01:43]} 21... Nxd8 {[%clk
0:01:43.4]} 22. Nd4 {[%clk 0:01:41.9]} 22... Bd7 {[%clk 0:01:39.7]} 23. Kf1
{[%clk 0:01:34.6]} 23... Ne6 {[%clk 0:01:29.8]} 24. Nxe6 {[%clk 0:01:30.6]}
24... Bxe6 {[%clk 0:01:29.8]} 25. Ke2 {[%clk 0:01:30.4]} 25... g5 {[%clk
0:01:27.3]} 26. Bd6 {[%clk 0:01:29.1]} 26... b5 {[%clk 0:01:24.8]} 27. Kd3
{[%clk 0:01:28.7]} 27... f5 {[%clk 0:01:14.1]} 28. Kd4 {[%clk 0:01:27]} 28...
Kf7 {[%clk 0:01:14.1]} 29. Kc5 {[%clk 0:01:27.3]} 29... Bd7 {[%clk 0:01:09.2]}
30. Bb8 {[%clk 0:01:22.9]} 30... a6 {[%clk 0:01:08.6]} 31. Kb6 {[%clk
0:01:23.4]} 31... Bc8 {[%clk 0:01:06.7]} 32. Kc7 {[%clk 0:01:20.8]} 32... Be6
{[%clk 0:01:06.6]} 33. Kb6 {[%clk 0:01:21.7]} 33... Bc8 {[%clk 0:01:06.4]} 34.
Kc7 {[%clk 0:01:08.9]} 34... Be6 {[%clk 0:01:06]} 35. Kd6 {[%clk 0:01:05.2]}
35... Bc8 {[%clk 0:01:01.4]} 36. Ba7 {[%clk 0:01:03.4]} 36... Bb7 {[%clk
0:01:00.9]} 37. g3 {[%clk 0:01:02.9]} 37... h5 {[%clk 0:00:59.5]} 38. Kc7 {[%clk
0:01:01.1]} 38... Bd5 {[%clk 0:00:57]} 39. Kb6 {[%clk 0:01:00.5]} 39... Ke6
{[%clk 0:00:55.7]} 40. Kxa6 {[%clk 0:01:00.3]} 40... Bc4 {[%clk 0:00:55.8]} 41.
Ka5 {[%clk 0:00:58.9]} 41... f4 {[%clk 0:00:53.4]} 42. a4 {[%clk 0:00:55.3]}
42... bxa4 {[%clk 0:00:52.7]} 43. Kxa4 {[%clk 0:00:56.2]} 43... f3 {[%clk
0:00:49.3]} 44. Be3 {[%clk 0:00:53.6]} 44... Kf5 {[%clk 0:00:48.9]} 45. b5
{[%clk 0:00:50.6]} 45... Kg4 {[%clk 0:00:47.4]} 46. b6 {[%clk 0:00:49.1]} 46...
Bd5 {[%clk 0:00:47.2]} 47. Ka5 {[%clk 0:00:49.6]} 47... Kh3 {[%clk 0:00:46.9]}
48. Bxg5 {[%clk 0:00:48.7]} 48... Kxh2 {[%clk 0:00:46.5]} 49. Ka6 {[%clk
0:00:47.4]} 49... Kg2 {[%clk 0:00:43.9]} 50. Be3 {[%clk 0:00:47.8]} 50... Kh3
{[%clk 0:00:32.7]} 51. b7 {[%clk 0:00:47.3]} 51... Bxb7+ {[%clk 0:00:32.7]} 52.
Kxb7 {[%clk 0:00:48.2]} 52... h4 {[%clk 0:00:32.6]} 53. gxh4 {[%clk 0:00:48.5]}
53... Kxh4 {[%clk 0:00:32.9]} 54. Kc6 {[%clk 0:00:49.3]} 1-0

[Event "*** SCC Grand Prix: Titled Tuesday Blitz"]
[Site "Chess.com"]
[Date "2020.09.29"]
[Round "6"]
[White "kuban1991"]
[Black "GregShahade"]
[Result "0-1"]
[WhiteElo "2819"]
[BlackElo "2637"]
[TimeControl "180+1"]
[EndTime "11:05:24 PDT"]
[Termination "GregShahade won by checkmate"]

1. Nf3 {[%clk 0:03:00.9]} 1... Nf6 {[%clk 0:02:59.6]} 2. g3 {[%clk 0:03:01.1]}
2... g6 {[%clk 0:02:59.4]} 3. Bg2 {[%clk 0:03:02]} 3... Bg7 {[%clk 0:02:59.9]}
4. O-O {[%clk 0:03:02.7]} 4... O-O {[%clk 0:03:00.3]} 5. c4 {[%clk 0:03:03.5]}
5... d5 {[%clk 0:02:59]} 6. cxd5 {[%clk 0:03:03.3]} 6... Nxd5 {[%clk 0:02:59.5]}
7. Nc3 {[%clk 0:03:04.2]} 7... Nb6 {[%clk 0:02:59.6]} 8. d3 {[%clk 0:03:02.2]}
8... Nc6 {[%clk 0:02:58.1]} 9. Bd2 {[%clk 0:03:01.2]} 9... e5 {[%clk 0:02:57.4]}
10. Rc1 {[%clk 0:02:59.8]} 10... Nd4 {[%clk 0:02:53.7]} 11. Nxd4 {[%clk
0:02:57.9]} 11... exd4 {[%clk 0:02:53.8]} 12. Ne4 {[%clk 0:02:58]} 12... c6
{[%clk 0:02:46.6]} 13. Nc5 {[%clk 0:02:54.6]} 13... Re8 {[%clk 0:02:43.2]} 14.
Re1 {[%clk 0:02:52.8]} 14... Nd5 {[%clk 0:02:34.8]} 15. Qb3 {[%clk 0:02:43.9]}
15... b6 {[%clk 0:02:09.3]} 16. Ne4 {[%clk 0:02:43.9]} 16... Bb7 {[%clk
0:01:50.7]} 17. Bg5 {[%clk 0:02:44]} 17... Qd7 {[%clk 0:01:46.2]} 18. Rcd1
{[%clk 0:02:16.4]} 18... c5 {[%clk 0:01:40.5]} 19. a3 {[%clk 0:02:06.5]} 19...
h6 {[%clk 0:01:29.8]} 20. Bc1 {[%clk 0:02:05.7]} 20... Kh7 {[%clk 0:01:20.9]}
21. h4 {[%clk 0:02:03.3]} 21... f5 {[%clk 0:01:12.1]} 22. Nd2 {[%clk 0:02:01.6]}
22... f4 {[%clk 0:01:12.5]} 23. Ne4 {[%clk 0:01:59]} 23... fxg3 {[%clk
0:01:05.4]} 24. fxg3 {[%clk 0:01:59.9]} 24... Ne3 {[%clk 0:01:05.8]} 25. Bxe3
{[%clk 0:01:59.5]} 25... dxe3 {[%clk 0:01:05.6]} 26. Rf1 {[%clk 0:01:57.7]}
26... Rf8 {[%clk 0:00:55.1]} 27. Kh2 {[%clk 0:01:46.1]} 27... Be5 {[%clk
0:00:49.4]} 28. h5 {[%clk 0:01:31.5]} 28... Kg7 {[%clk 0:00:14.4]} 29. Nxc5
{[%clk 0:01:20.5]} 29... Bxg3+ {[%clk 0:00:09]} 30. Kg1 {[%clk 0:00:28.5]} 30...
Bf2+ {[%clk 0:00:07.8]} 31. Rxf2 {[%clk 0:00:17.7]} 31... exf2+ {[%clk
0:00:08.7]} 32. Kh2 {[%clk 0:00:14.3]} 32... Qd6+ {[%clk 0:00:08.8]} 33. Kh1
{[%clk 0:00:12.1]} 33... f1=Q+ {[%clk 0:00:08.3]} 34. Rxf1 {[%clk 0:00:11.1]}
34... Rxf1# {[%clk 0:00:09.2]} 0-1

[Event "*** SCC Grand Prix: Titled Tuesday Blitz"]
[Site "Chess.com"]
[Date "2020.09.29"]
[Round "6"]
[White "XDPS"]
[Black "Iskusnyh"]
[Result "1-0"]
[WhiteElo "2761"]
[BlackElo "2549"]
[TimeControl "180+1"]
[EndTime "11:05:25 PDT"]
[Termination "XDPS won by checkmate"]

1. e4 {[%clk 0:03:00.9]} 1... e6 {[%clk 0:02:59.2]} 2. b3 {[%clk 0:02:57.3]}
2... d5 {[%clk 0:02:52.9]} 3. Bb2 {[%clk 0:02:56.9]} 3... dxe4 {[%clk
0:02:45.9]} 4. Nc3 {[%clk 0:02:56.8]} 4... Nf6 {[%clk 0:02:44.8]} 5. Qe2 {[%clk
0:02:57]} 5... Nc6 {[%clk 0:02:41.3]} 6. Nxe4 {[%clk 0:02:56.3]} 6... Be7 {[%clk
0:02:31.4]} 7. O-O-O {[%clk 0:02:47]} 7... Nxe4 {[%clk 0:02:27.4]} 8. Qxe4
{[%clk 0:02:46.6]} 8... Bf6 {[%clk 0:02:27.9]} 9. d4 {[%clk 0:02:46.2]} 9... O-O
{[%clk 0:02:27.3]} 10. f4 {[%clk 0:02:46.4]} 10... Qd5 {[%clk 0:02:23.9]} 11.
Qe3 {[%clk 0:02:41.1]} 11... a5 {[%clk 0:01:49.2]} 12. Nf3 {[%clk 0:02:32.9]}
12... a4 {[%clk 0:01:47.7]} 13. Bc4 {[%clk 0:02:32.7]} 13... Qa5 {[%clk
0:01:45.1]} 14. Qe1 {[%clk 0:01:47.2]} 14... axb3 {[%clk 0:01:38.3]} 15. Qxa5
{[%clk 0:01:15.2]} 15... Nxa5 {[%clk 0:01:36.3]} 16. Bxb3 {[%clk 0:01:15.7]}
16... b5 {[%clk 0:01:26.4]} 17. d5 {[%clk 0:01:04.8]} 17... Bxb2+ {[%clk
0:01:13.9]} 18. Kxb2 {[%clk 0:01:05.7]} 18... Nxb3 {[%clk 0:01:08.8]} 19. axb3
{[%clk 0:01:05.6]} 19... Bb7 {[%clk 0:01:04.6]} 20. dxe6 {[%clk 0:00:50.7]}
20... fxe6 {[%clk 0:01:03.9]} 21. Nd4 {[%clk 0:00:39]} 21... Rxf4 {[%clk
0:00:57.3]} 22. Nxe6 {[%clk 0:00:39]} 22... Rf2 {[%clk 0:00:55.9]} 23. Rd7
{[%clk 0:00:35.5]} 23... Rxg2 {[%clk 0:00:51]} 24. Rxc7 {[%clk 0:00:34]} 24...
Be4 {[%clk 0:00:44.2]} 25. Re1 {[%clk 0:00:21.4]} 25... Bf5 {[%clk 0:00:43.7]}
26. Nd4 {[%clk 0:00:18.5]} 26... Bg6 {[%clk 0:00:43.5]} 27. Ree7 {[%clk
0:00:19]} 27... b4 {[%clk 0:00:40.2]} 28. Rxg7+ {[%clk 0:00:18.2]} 28... Kh8
{[%clk 0:00:40.2]} 29. h4 {[%clk 0:00:18.4]} 29... Rd8 {[%clk 0:00:38.9]} 30. h5
{[%clk 0:00:08.8]} 30... Rxd4 {[%clk 0:00:22.4]} 31. hxg6 {[%clk 0:00:06.6]}
31... hxg6 {[%clk 0:00:20.5]} 32. Rge7 {[%clk 0:00:05.6]} 32... Rd8 {[%clk
0:00:19.6]} 33. Re4 {[%clk 0:00:04.2]} 33... Rg8 {[%clk 0:00:16.3]} 34. Rh4#
{[%clk 0:00:03.6]} 1-0

[Event "*** SCC Grand Prix: Titled Tuesday Blitz"]
[Site "Chess.com"]
[Date "2020.09.29"]
[Round "6"]
[White "TST2014"]
[Black "zmeeed67"]
[Result "1-0"]
[WhiteElo "2568"]
[BlackElo "2380"]
[TimeControl "180+1"]
[EndTime "11:05:27 PDT"]
[Termination "TST2014 won by resignation"]

1. d4 {[%clk 0:03:00.9]} 1... Nc6 {[%clk 0:02:59.7]} 2. Nf3 {[%clk 0:02:58]}
2... d6 {[%clk 0:02:59.6]} 3. e4 {[%clk 0:02:53.8]} 3... Bg4 {[%clk 0:02:59.1]}
4. d5 {[%clk 0:02:50.3]} 4... Bxf3 {[%clk 0:02:58.7]} 5. Qxf3 {[%clk 0:02:49.3]}
5... Ne5 {[%clk 0:02:59.2]} 6. Qb3 {[%clk 0:02:48.3]} 6... Qc8 {[%clk
0:02:57.4]} 7. f4 {[%clk 0:02:37.4]} 7... Nd7 {[%clk 0:02:57.2]} 8. Be3 {[%clk
0:02:34.2]} 8... Ngf6 {[%clk 0:02:57.1]} 9. Nd2 {[%clk 0:02:33.6]} 9... g6
{[%clk 0:02:56.7]} 10. g3 {[%clk 0:02:29.9]} 10... Bg7 {[%clk 0:02:56.4]} 11.
Bh3 {[%clk 0:02:30.2]} 11... Qb8 {[%clk 0:02:40.1]} 12. Qa4 {[%clk 0:02:19.7]}
12... b5 {[%clk 0:02:27.1]} 13. Qa6 {[%clk 0:02:17.1]} 13... O-O {[%clk
0:02:21.2]} 14. O-O {[%clk 0:01:59.9]} 14... h5 {[%clk 0:01:51.1]} 15. c3 {[%clk
0:01:48.5]} 15... Ng4 {[%clk 0:01:48.2]} 16. Bd4 {[%clk 0:01:45.7]} 16... Ndf6
{[%clk 0:01:41.3]} 17. Bg2 {[%clk 0:01:42]} 17... Nd7 {[%clk 0:01:25.6]} 18. Nb3
{[%clk 0:01:33.8]} 18... Re8 {[%clk 0:01:00.4]} 19. Rfe1 {[%clk 0:01:22.8]}
19... Bf8 {[%clk 0:00:45]} 20. h3 {[%clk 0:01:22]} 20... Ngf6 {[%clk 0:00:39.1]}
21. e5 {[%clk 0:01:21]} 21... Nh7 {[%clk 0:00:37.3]} 22. e6 {[%clk 0:01:20.4]}
22... Ndf6 {[%clk 0:00:35.4]} 23. exf7+ {[%clk 0:01:19.1]} 23... Kxf7 {[%clk
0:00:35.7]} 24. Re6 {[%clk 0:01:08.6]} 24... Bg7 {[%clk 0:00:33.5]} 25. Rae1
{[%clk 0:01:07.5]} 25... Nf8 {[%clk 0:00:33.8]} 26. R6e2 {[%clk 0:00:56]} 26...
N8d7 {[%clk 0:00:20.9]} 27. Na5 {[%clk 0:00:52.8]} 27... Qc8 {[%clk 0:00:17.7]}
28. Qxb5 {[%clk 0:00:50.6]} 28... Rb8 {[%clk 0:00:16.9]} 29. Qd3 {[%clk
0:00:47.3]} 29... Nc5 {[%clk 0:00:15.8]} 30. Bxc5 {[%clk 0:00:45.9]} 30... dxc5
{[%clk 0:00:16.1]} 31. Nc6 {[%clk 0:00:46.4]} 31... Rb6 {[%clk 0:00:16]} 32.
Rxe7+ {[%clk 0:00:45.7]} 32... Rxe7 {[%clk 0:00:15.3]} 33. Rxe7+ {[%clk
0:00:46.4]} 33... Kg8 {[%clk 0:00:14.8]} 34. Qxg6 {[%clk 0:00:46.3]} 34... Qf8
{[%clk 0:00:15.2]} 35. Rxc7 {[%clk 0:00:39.5]} 35... Rxb2 {[%clk 0:00:12.7]} 36.
Rc8 {[%clk 0:00:31.8]} 36... Rb1+ {[%clk 0:00:08.2]} 37. Kh2 {[%clk 0:00:31.7]}
1-0

[Event "*** SCC Grand Prix: Titled Tuesday Blitz"]
[Site "Chess.com"]
[Date "2020.09.29"]
[Round "6"]
[White "GHANDEEVAM2003"]
[Black "Akmal_Fayzullaev"]
[Result "0-1"]
[WhiteElo "2990"]
[BlackElo "2326"]
[TimeControl "180+1"]
[EndTime "11:05:29 PDT"]
[Termination "Akmal_Fayzullaev won by resignation"]

1. f3 {[%clk 0:03:00.9]} 1... d5 {[%clk 0:02:53.6]} 2. g3 {[%clk 0:03:00.6]}
2... e5 {[%clk 0:02:52.4]} 3. Nh3 {[%clk 0:03:00.5]} 3... Nf6 {[%clk 0:02:46.8]}
4. Nf2 {[%clk 0:03:00.4]} 4... Bc5 {[%clk 0:02:42.6]} 5. Bg2 {[%clk 0:02:59.7]}
5... O-O {[%clk 0:02:42.3]} 6. O-O {[%clk 0:02:59]} 6... Re8 {[%clk 0:02:40]} 7.
e3 {[%clk 0:02:59]} 7... c6 {[%clk 0:02:39.1]} 8. d3 {[%clk 0:02:58.6]} 8... a5
{[%clk 0:02:37.3]} 9. c3 {[%clk 0:02:58.4]} 9... Nbd7 {[%clk 0:02:34.9]} 10. Na3
{[%clk 0:02:58]} 10... Nf8 {[%clk 0:02:18.3]} 11. Nc2 {[%clk 0:02:57.9]} 11...
Ba7 {[%clk 0:02:18.7]} 12. a4 {[%clk 0:02:57.1]} 12... Ng6 {[%clk 0:02:18]} 13.
b3 {[%clk 0:02:56.6]} 13... h6 {[%clk 0:02:16.2]} 14. Bd2 {[%clk 0:02:54.2]}
14... Qc7 {[%clk 0:02:15.6]} 15. Qe2 {[%clk 0:02:54.1]} 15... Bd7 {[%clk
0:02:14.5]} 16. Rfb1 {[%clk 0:02:54.4]} 16... h5 {[%clk 0:02:09.6]} 17. Kh1
{[%clk 0:02:49.2]} 17... h4 {[%clk 0:02:08.9]} 18. g4 {[%clk 0:02:49]} 18...
Rad8 {[%clk 0:01:59.4]} 19. h3 {[%clk 0:02:47.3]} 19... Bc8 {[%clk 0:01:58.8]}
20. Rf1 {[%clk 0:02:38]} 20... d4 {[%clk 0:01:51.7]} 21. Ne4 {[%clk 0:02:23.7]}
21... Nd5 {[%clk 0:01:50.9]} 22. cxd4 {[%clk 0:02:13]} 22... exd4 {[%clk
0:01:49.8]} 23. Nxd4 {[%clk 0:02:12]} 23... Bxd4 {[%clk 0:01:28.9]} 24. exd4
{[%clk 0:02:12.9]} 24... Ndf4 {[%clk 0:01:27.2]} 25. Qe3 {[%clk 0:02:05.5]}
25... Be6 {[%clk 0:01:20.2]} 26. Rab1 {[%clk 0:02:00]} 26... f5 {[%clk
0:01:13.1]} 27. gxf5 {[%clk 0:01:42.2]} 27... Bxf5 {[%clk 0:01:14]} 28. Rg1
{[%clk 0:01:42.5]} 28... Qc8 {[%clk 0:01:10.9]} 29. Bxa5 {[%clk 0:01:32.9]}
29... Rd5 {[%clk 0:01:06.8]} 30. Bd2 {[%clk 0:01:16.2]} 30... Bxh3 {[%clk
0:01:06.2]} 31. Qf2 {[%clk 0:01:16.6]} 31... Bxg2+ {[%clk 0:01:04.8]} 32. Rxg2
{[%clk 0:01:17.5]} 32... Nxg2 {[%clk 0:01:04.1]} 33. Qxg2 {[%clk 0:01:18.4]}
33... Qf5 {[%clk 0:01:01.2]} 34. Rg1 {[%clk 0:01:18.3]} 34... Rxd4 {[%clk
0:01:00.1]} 35. Kh2 {[%clk 0:01:08]} 35... Rxd3 {[%clk 0:00:58.4]} 36. Qxg6
{[%clk 0:00:59]} 36... Qxg6 {[%clk 0:00:51.3]} 37. Rxg6 {[%clk 0:00:59.9]} 37...
Rxe4 {[%clk 0:00:51.8]} 38. fxe4 {[%clk 0:01:00.7]} 38... Rxd2+ {[%clk 0:00:52]}
39. Kh3 {[%clk 0:01:01.6]} 39... Kf7 {[%clk 0:00:48.3]} 40. Rg1 {[%clk
0:00:56.9]} 40... Rd3+ {[%clk 0:00:48.1]} 41. Kxh4 {[%clk 0:00:57.2]} 41... Rxb3
{[%clk 0:00:48.4]} 42. Rd1 {[%clk 0:00:56]} 42... Rb4 {[%clk 0:00:46.9]} 43. Kg5
{[%clk 0:00:53.4]} 43... Ke6 {[%clk 0:00:47]} 44. a5 {[%clk 0:00:51.2]} 44...
Rxe4 {[%clk 0:00:46.9]} 45. Rb1 {[%clk 0:00:51.6]} 45... Re5+ {[%clk 0:00:46.6]}
46. Kg6 {[%clk 0:00:48.9]} 46... Rb5 {[%clk 0:00:47.5]} 47. Ra1 {[%clk
0:00:46.6]} 47... c5 {[%clk 0:00:45.5]} 48. Kxg7 {[%clk 0:00:46]} 48... c4
{[%clk 0:00:45.4]} 49. Kf8 {[%clk 0:00:45]} 49... c3 {[%clk 0:00:43.9]} 50. Ke8
{[%clk 0:00:44.4]} 50... c2 {[%clk 0:00:43.8]} 51. Rc1 {[%clk 0:00:44.5]} 51...
Rc5 {[%clk 0:00:43.7]} 52. Kf8 {[%clk 0:00:43.8]} 52... Kd5 {[%clk 0:00:43.4]}
53. Ke7 {[%clk 0:00:44]} 53... Kd4 {[%clk 0:00:41.1]} 54. Kd6 {[%clk 0:00:44.2]}
54... Rc6+ {[%clk 0:00:41.4]} 55. Kd7 {[%clk 0:00:44.2]} 55... Kd3 {[%clk
0:00:41.5]} 0-1

[Event "*** SCC Grand Prix: Titled Tuesday Blitz"]
[Site "Chess.com"]
[Date "2020.09.29"]
[Round "6"]
[White "alexgo05"]
[Black "OsorioFernando"]
[Result "1-0"]
[WhiteElo "2420"]
[BlackElo "2300"]
[TimeControl "180+1"]
[EndTime "11:05:30 PDT"]
[Termination "alexgo05 won on time"]

1. e4 {[%clk 0:03:00.9]} 1... d5 {[%clk 0:02:57.8]} 2. exd5 {[%clk 0:03:00.5]}
2... Nf6 {[%clk 0:02:57.5]} 3. Nf3 {[%clk 0:02:58.7]} 3... Bg4 {[%clk
0:02:57.5]} 4. h3 {[%clk 0:02:56.9]} 4... Bxf3 {[%clk 0:02:55.9]} 5. Qxf3 {[%clk
0:02:56.5]} 5... Qxd5 {[%clk 0:02:56.4]} 6. Qxd5 {[%clk 0:02:52.5]} 6... Nxd5
{[%clk 0:02:54.4]} 7. c3 {[%clk 0:02:40.5]} 7... e5 {[%clk 0:02:51.9]} 8. g3
{[%clk 0:02:31.6]} 8... Nc6 {[%clk 0:02:48.5]} 9. d3 {[%clk 0:02:20.2]} 9...
O-O-O {[%clk 0:02:48]} 10. Nd2 {[%clk 0:02:19.8]} 10... f5 {[%clk 0:02:45.8]}
11. Be2 {[%clk 0:02:18.8]} 11... Bc5 {[%clk 0:02:44.2]} 12. O-O {[%clk
0:02:06.9]} 12... g5 {[%clk 0:02:35]} 13. Nc4 {[%clk 0:01:44.9]} 13... f4 {[%clk
0:02:24.8]} 14. g4 {[%clk 0:01:42.9]} 14... a5 {[%clk 0:02:12.7]} 15. a4 {[%clk
0:01:37.3]} 15... Rdg8 {[%clk 0:02:02.2]} 16. Bd2 {[%clk 0:01:36.6]} 16... h5
{[%clk 0:01:58.2]} 17. Kg2 {[%clk 0:01:36.3]} 17... hxg4 {[%clk 0:01:52.2]} 18.
hxg4 {[%clk 0:01:32.6]} 18... Nb6 {[%clk 0:01:37.4]} 19. Nxb6+ {[%clk
0:01:27.1]} 19... Bxb6 {[%clk 0:01:31.9]} 20. Rh1 {[%clk 0:01:23.7]} 20... Kd7
{[%clk 0:01:28.6]} 21. Bf3 {[%clk 0:01:23]} 21... Ne7 {[%clk 0:01:18.2]} 22. Be4
{[%clk 0:01:16.5]} 22... c6 {[%clk 0:01:13.3]} 23. Rxh8 {[%clk 0:00:57.2]} 23...
Rxh8 {[%clk 0:01:12.6]} 24. b4 {[%clk 0:00:57.7]} 24... axb4 {[%clk 0:01:08.1]}
25. cxb4 {[%clk 0:00:55.7]} 25... Bd4 {[%clk 0:01:05.3]} 26. Rb1 {[%clk
0:00:50.9]} 26... Nd5 {[%clk 0:00:58.8]} 27. b5 {[%clk 0:00:47.1]} 27... Kd6
{[%clk 0:00:34.7]} 28. a5 {[%clk 0:00:41.8]} 28... Nf6 {[%clk 0:00:28.8]} 29.
Bf3 {[%clk 0:00:37.4]} 29... Kc7 {[%clk 0:00:15.6]} 30. a6 {[%clk 0:00:31.9]}
30... bxa6 {[%clk 0:00:10]} 31. bxc6 {[%clk 0:00:31.4]} 31... Bb6 {[%clk
0:00:07.9]} 32. Bc3 {[%clk 0:00:31]} 32... Re8 {[%clk 0:00:04.5]} 33. Re1 {[%clk
0:00:30.1]} 33... Kd6 {[%clk 0:00:04.7]} 34. Rb1 {[%clk 0:00:29.2]} 34... Bc7
{[%clk 0:00:03.7]} 35. Rb7 {[%clk 0:00:26.6]} 1-0